bitfinex-derivatives/quotes_ETHF0:USTF0_20250114
["timestamp","ask_amount","ask_price","bid_price","bid_amount"]
[1736865105739,0.9542,3216.3,3215.7,40.8]
[1736865105942,6.6287396,3216.0,3215.7,40.8]
[1736865106245,3.2078,3216.0,3215.7,40.8]
[1736865106448,3.32595099,3215.9,3215.7,44.0078]
[1736865106742,3.32595099,3216.2,3215.8,3.2078]
[1736865106941,3.32595099,3216.2,3215.7,40.8]
[1736865107143,0.9542,3216.3,3215.7,40.8]
[1736865107445,3.32595099,3216.2,3215.4,3.59674176]
[1736865107643,3.2078,3216.0,3215.4,3.59674176]
[1736865107838,3.32595099,3216.2,3215.4,3.59674176]
[1736865108039,3.2078,3216.8,3216.1,3.2078]
[1736865108440,3.2078,3216.8,3216.1,3.668]
[1736865108639,0.9289,3217.7,3216.1,3.668]
[1736865108848,0.4837,3217.6,3217.0,3.2078]
[1736865109044,3.57075703,3217.5,3217.0,3.2078]
[1736865109345,0.4837,3217.6,3217.0,3.2078]
[1736865109546,0.4733,3217.7,3217.0,3.2078]
[1736865110546,3.74855614,3217.6,3216.4,3.2078]
[1736865110844,3.2078,3217.4,3216.4,3.2078]
[1736865111241,3.43766614,3217.3,3216.4,3.2078]
[1736865111451,3.43766614,3217.3,3216.8,3.2078]
[1736865111648,0.4733,3217.7,3217.2,3.2078]
[1736865111950,0.77695,3218.9,3216.9,40.8]
[1736865111951,3.2078,3218.7,3217.6,3.2078]
[1736865112152,0.4916,3219.3,3218.6,3.2078]
[1736865112348,0.4755,3219.4,3218.6,3.2078]
[1736865112648,3.2078,3219.5,3218.7,40.8]
[1736865113044,0.4916,3220.0,3219.3,3.2078]
[1736865114041,3.2078,3220.4,3219.3,6.64212823]
[1736865114249,3.2078,3220.4,3219.3,3.2078]
[1736865114442,3.2078,3220.4,3218.9,6.64212823]
[1736865114443,3.6606515,3220.3,3218.9,6.64212823]
[1736865114648,3.6606515,3220.3,3219.3,3.2078]
[1736865114649,3.3500215,3220.3,3219.3,3.2078]
[1736865114845,3.6606615,3220.3,3219.3,3.2078]
[1736865115657,3.2078,3220.0,3218.9,3.2078]
[1736865115851,0.31067,3219.9,3218.9,3.2078]
[1736865116151,3.59993928,3219.9,3218.9,3.2078]
[1736865116555,3.2078,3219.6,3218.9,3.2078]
[1736865116855,3.2078,3219.1,3218.4,3.2078]
[1736865117253,3.04324485,3219.0,3218.4,3.2078]
[1736865118347,3.2078,3218.7,3218.0,0.2089]
[1736865118547,3.2078,3218.7,3217.9,3.2078]
[1736865118857,3.48300958,3218.6,3217.9,3.2078]
[1736865119353,3.48300958,3218.6,3217.5,3.6628]
[1736865119549,3.95870958,3218.6,3217.5,3.6628]
[1736865119752,3.2078,3218.3,3217.5,3.6628]
[1736865120153,3.32912976,3218.2,3217.5,3.2078]
[1736865120352,3.2078,3217.9,3217.0,3.2078]
[1736865120653,3.2078,3217.9,3216.1,3.2078]
[1736865120654,0.31094,3217.2,3216.1,3.2078]
[1736865120949,3.51877,3216.9,3216.1,3.2078]
[1736865121155,0.311,3216.5,3216.1,3.2078]
[1736865121351,3.5188,3216.5,3215.6,0.38888353]
[1736865121555,3.54860393,3216.4,3215.6,0.38888353]
[1736865121948,3.2078,3216.9,3216.3,3.2078]
[1736865122346,3.54860393,3216.9,3216.2,3.74534823]
[1736865122556,3.2078,3217.5,3216.6,3.2078]
[1736865122955,3.29753431,3217.4,3216.6,3.2078]
[1736865123157,3.2078,3217.5,3216.6,3.2078]
[1736865123655,3.58602038,3217.4,3216.7,3.2078]
[1736865124250,3.2078,3217.5,3217.1,3.2078]
[1736865124655,3.2078,3217.5,3216.4,42.365]
[1736865124656,3.58291353,3217.4,3216.7,3.2078]
[1736865125054,3.2078,3217.5,3216.7,3.2078]
[1736865125458,3.58291353,3217.4,3216.7,3.2078]
[1736865125658,3.2078,3217.5,3216.7,3.2078]
[1736865125964,3.2078,3217.5,3216.8,3.43432823]
[1736865126160,3.2078,3217.5,3217.1,3.2078]
[1736865126455,3.34560944,3217.4,3217.1,3.2078]
[1736865126651,3.34560944,3217.4,3216.7,3.2078]
[1736865127257,3.34560944,3217.4,3216.4,40.8]
[1736865127258,3.2078,3217.1,3216.4,40.8]
[1736865127563,3.2078,3216.7,3216.4,40.8]
[1736865127957,3.36525444,3216.6,3216.4,40.8]
[1736865128454,3.36525444,3216.6,3215.5,3.2078]
[1736865128861,3.2078,3216.3,3215.5,3.2078]
[1736865129158,3.2078,3215.8,3215.3,0.62226247]
[1736865129352,0.31111,3215.4,3215.3,0.62226247]
[1736865129551,3.51891,3215.4,3214.7,3.2078]
[1736865129854,6.7230182,3215.4,3214.7,3.2078]
[1736865130255,0.31113,3215.2,3214.7,3.2078]
[1736865130560,1.566,3215.3,3213.7,3.2078]
[1736865130561,3.2078,3214.9,3213.7,3.2078]
[1736865130757,3.43432823,3214.5,3213.6,0.62254808]
[1736865131064,3.2078,3213.9,3213.6,0.62254808]
[1736865131557,3.50050845,3213.8,3213.6,0.62254808]
[1736865134256,3.2078,3214.4,3213.6,4.05687631]
[1736865134452,3.2078,3214.8,3214.1,3.43432823]
[1736865135062,3.2078,3215.5,3214.5,3.43432823]
[1736865135252,3.2078,3215.5,3214.9,3.43432823]
[1736865135461,6.56387485,3215.5,3214.9,3.43432823]
[1736865135767,3.2078,3215.5,3214.9,3.43432823]
[1736865135951,0.4843,3216.1,3215.2,3.2078]
[1736865136155,0.4843,3216.1,3215.3,3.43432823]
[1736865136460,3.2078,3215.7,3214.6,3.2078]
[1736865136664,3.2078,3215.3,3214.2,3.2078]
[1736865136967,3.6460514,3215.2,3214.2,3.2078]
[1736865137162,3.6460514,3215.2,3214.3,40.8]
[1736865137464,3.6460514,3215.2,3213.6,0.62254808]
[1736865137465,3.2078,3214.4,3213.6,0.62254808]
[1736865137665,1.579,3214.3,3213.6,0.62254808]
[1736865137869,3.37636784,3214.3,3213.6,0.62254808]
[1736865138057,3.2078,3213.9,3213.6,0.62254808]
[1736865138262,0.31123,3214.2,3213.6,0.62254808]
[1736865138462,3.37636784,3213.8,3213.7,40.8]
[1736865138669,0.22907239,3214.1,3213.7,40.8]
[1736865138862,6.58416784,3214.2,3213.7,40.8]
[1736865139058,3.2078,3214.2,3213.7,40.8]
[1736865140365,3.54806766,3214.1,3213.7,40.8]
[1736865140967,3.2078,3213.8,3213.7,40.8]
[1736865141163,3.51906,3213.8,3213.6,0.62254808]
[1736865141369,0.4589,3213.7,3213.6,0.62254808]
[1736865141568,0.31131,3213.4,3212.5,3.2078]
[1736865141773,3.2078,3213.1,3212.6,40.8]
[1736865142069,3.5081739,3213.0,3212.6,40.8]
[1736865142263,3.2078,3212.7,3212.6,40.8]
[1736865142883,6.58137172,3212.7,3211.5,3.694]
[1736865143271,6.58137172,3212.7,3211.7,3.43432823]
[1736865143466,6.58137172,3212.7,3211.8,40.8]
[1736865143670,6.58137172,3212.7,3211.5,3.694]
[1736865143671,3.2078,3212.3,3211.5,3.2078]
[1736865143876,0.31142,3212.2,3211.5,3.2078]
[1736865144175,0.31142,3212.2,3211.6,40.8]
[1736865144176,1.58,3212.1,3211.6,40.8]
[1736865144479,3.77628493,3212.0,3211.5,3.2078]
[1736865144877,3.2078,3211.9,3211.1,3.2078]
[1736865145274,3.46484493,3211.8,3211.1,3.2078]
[1736865148278,3.2078,3211.9,3211.1,3.2078]
[1736865148682,3.51929,3211.5,3210.7,3.2078]
[1736865148876,0.31151,3211.3,3210.7,3.2078]
[1736865149084,3.43432823,3210.9,3209.5,4.1466]
[1736865149280,3.2078,3210.3,3209.5,3.2078]
[1736865149771,3.2528402,3210.2,3209.5,3.2078]
[1736865150678,3.2078,3211.5,3210.0,3.43432823]
[1736865150881,3.2078,3211.5,3210.3,3.2078]
[1736865151077,3.59548255,3211.1,3210.9,3.2078]
[1736865151279,1.89238,3212.7,3210.9,3.2078]
[1736865151479,1.89238,3212.7,3211.4,3.2078]
[1736865151780,3.58832069,3211.9,3211.8,40.8]
[1736865151984,3.2078,3212.6,3211.8,40.8]
[1736865152183,3.2078,3212.6,3211.9,3.2078]
[1736865152382,3.58832069,3212.3,3211.9,3.2078]
[1736865152683,3.58832069,3212.3,3211.8,40.8]
[1736865152884,3.2078,3212.6,3211.8,40.8]
[1736865152885,3.12061997,3212.5,3211.8,40.8]
[1736865153179,3.2078,3212.6,3211.9,3.2078]
[1736865153378,3.37499307,3212.5,3211.9,3.2078]
[1736865154180,0.3114,3212.4,3211.9,3.2078]
[1736865154585,0.31142,3212.2,3211.9,3.2078]
[1736865154781,0.31145,3212.0,3211.1,3.2078]
[1736865154981,3.2078,3211.8,3210.9,40.8]
[1736865155187,3.2078,3211.8,3211.1,3.2078]
[1736865155383,3.5473422,3211.9,3211.5,3.2078]
[1736865155583,3.2078,3213.0,3212.0,0.31143]
[1736865155786,3.2078,3213.0,3212.5,3.2078]
[1736865156079,3.27790826,3212.9,3212.5,3.2078]
[1736865156279,3.2078,3213.4,3212.6,40.8]
[1736865156486,3.27790826,3213.3,3212.6,40.8]
[1736865156682,3.2078,3213.4,3212.6,40.8]
[1736865157078,3.54843319,3213.3,3212.9,3.2078]
[1736865157281,1.581,3214.0,3212.9,3.2078]
[1736865157481,3.54843319,3213.9,3213.4,3.2078]
[1736865157682,0.31129,3213.5,3212.6,40.8]
[1736865157894,3.2078,3213.0,3212.3,3.2078]
[1736865158186,3.2078,3212.6,3211.7,3.2078]
[1736865158383,0.31143,3212.1,3211.3,3.2078]
[1736865158584,3.2078,3211.7,3210.7,0.4681]
[1736865158986,0.31149,3211.5,3210.6,0.4778]
[1736865159184,3.2078,3211.3,3210.6,0.4778]
[1736865159386,3.32646959,3211.4,3211.2,3.2078]
[1736865159685,3.32646959,3211.9,3211.2,3.2078]
[1736865159887,3.2078,3212.3,3211.2,3.2078]
[1736865160081,3.30727108,3212.2,3211.2,3.2078]
[1736865160384,3.2078,3212.3,3211.2,3.2078]
[1736865160576,3.60324119,3212.1,3211.3,3.2078]
[1736865160781,3.60324119,3212.2,3211.8,3.2078]
[1736865160985,11.213,3212.8,3211.8,3.2078]
[1736865161281,3.60324119,3212.7,3212.2,3.2078]
[1736865161485,3.60324119,3212.7,3212.2,6.95353823]
[1736865161676,3.2078,3214.0,3212.6,6.64212823]
[1736865161979,6.6396471,3214.0,3213.5,3.2078]
[1736865162175,3.4318471,3214.0,3213.8,3.43432823]
[1736865162388,3.2078,3215.1,3213.9,44.0078]
[1736865162688,3.24296929,3214.1,3213.9,44.0078]
[1736865163083,3.24296929,3214.2,3213.9,44.0078]
[1736865163084,3.2078,3214.7,3213.9,44.0078]
[1736865163487,3.24296929,3214.3,3213.9,40.8]
[1736865163681,4.85296929,3214.6,3213.9,40.8]
[1736865163890,0.31123,3214.2,3213.9,40.8]
[1736865164187,3.32307698,3214.1,3213.4,3.2078]
[1736865164387,3.2078,3213.9,3212.9,3.2078]
[1736865164887,3.2078,3213.4,3212.2,0.4801]
[1736865165080,3.2078,3212.6,3211.7,3.2078]
[1736865165483,3.32307698,3212.5,3211.7,3.2078]
[1736865165884,3.32307698,3212.5,3212.1,3.2078]
[1736865166287,5.278,3213.3,3212.1,3.2078]
[1736865166686,3.36538236,3213.2,3212.5,3.2078]
[1736865167488,3.36538236,3213.2,3212.0,3.6899]
[1736865167686,3.36538236,3213.2,3212.6,3.2078]
[1736865167893,3.6937,3213.8,3213.0,3.2078]
[1736865168092,3.2078,3214.2,3213.4,3.2078]
[1736865168494,3.53407855,3213.8,3213.4,3.2078]
[1736865168694,3.53407855,3214.1,3213.4,3.2078]
[1736865168893,3.2078,3213.8,3212.7,3.2078]
[1736865169099,3.51914,3213.0,3211.7,3.6879]
[1736865169396,3.2078,3213.4,3212.4,3.2078]
[1736865169592,6.55179287,3213.8,3213.1,3.2078]
[1736865169787,3.07051589,3213.6,3213.1,3.2078]
[1736865169988,3.2078,3213.8,3213.1,3.2078]
[1736865170192,3.2078,3213.8,3213.2,0.31132]
[1736865170499,3.2078,3214.9,3213.7,3.2078]
[1736865170700,3.2078,3214.9,3214.2,3.2078]
[1736865170904,3.45278042,3214.5,3213.8,3.2078]
[1736865171088,3.45278042,3214.7,3213.8,3.2078]
[1736865171295,3.519,3214.5,3213.8,3.2078]
[1736865171495,3.05371644,3214.4,3213.8,3.2078]
[1736865171798,1.92116,3214.9,3213.8,3.2078]
[1736865171999,3.55843212,3214.4,3213.9,40.8]
[1736865172300,3.2078,3214.2,3213.4,3.2078]
[1736865172597,0.31127,3213.7,3212.6,3.2078]
[1736865172793,1.61,3213.7,3212.6,3.2078]
[1736865173100,3.2078,3213.5,3212.6,3.2078]
[1736865173303,3.2078,3212.7,3212.5,0.00255483]
[1736865173794,1.61,3212.8,3212.5,0.00255483]
[1736865173795,3.37483812,3212.6,3212.5,0.00255483]
[1736865174198,3.37483812,3212.7,3212.5,0.00255483]
[1736865174403,1.61,3213.4,3212.5,0.00255483]
[1736865174699,3.37483812,3213.0,3212.8,3.2078]
[1736865174900,0.31132,3213.2,3212.5,0.00255483]
[1736865175097,3.2078,3212.6,3212.5,0.00255483]
[1736865175297,0.77831,3213.2,3212.5,0.00255483]
[1736865175298,5.04432823,3213.0,3212.5,0.00255483]
[1736865175600,3.27289733,3212.6,3211.8,3.2078]
[1736865175790,3.43325672,3212.9,3211.8,44.0078]
[1736865175992,3.43325672,3212.6,3212.3,3.2078]
[1736865176297,3.43325672,3212.7,3212.3,3.2078]
[1736865176598,1.61,3213.0,3211.8,40.8]
[1736865176599,0.3114,3212.4,3211.8,40.8]
[1736865176802,0.3114,3212.4,3211.2,3.2078]
[1736865177097,3.2078,3212.1,3211.2,3.2078]
[1736865177296,4.8178,3212.1,3211.2,3.2078]
[1736865177501,3.43550352,3212.0,3210.8,3.2078]
[1736865177701,3.43550352,3212.0,3210.7,3.2078]
[1736865177899,3.43550352,3212.0,3211.1,3.2078]
[1736865178496,3.2078,3211.2,3210.7,3.2078]
[1736865178691,3.43432823,3211.6,3210.7,3.2078]
[1736865178692,6.64212823,3211.6,3210.7,3.2078]
[1736865178902,3.32009552,3211.1,3210.2,3.6654]
[1736865179109,3.2078,3211.2,3210.2,3.6654]
[1736865179496,3.2078,3210.8,3210.2,3.2078]
[1736865179902,3.71938886,3210.7,3210.2,3.2078]
[1736865180207,0.3116,3210.3,3209.3,3.2078]
[1736865180419,6.64212823,3210.0,3208.7,3.2078]
[1736865180599,3.2078,3209.6,3208.7,3.2078]
[1736865180794,3.51948,3209.6,3208.7,3.2078]
[1736865181104,3.40782886,3209.5,3208.7,3.43432823]
[1736865181300,1.611,3210.5,3209.4,3.2078]
[1736865181530,3.5359935,3209.9,3209.8,3.2078]
[1736865181756,0.3116,3210.3,3209.8,3.2078]
[1736865182040,3.56440442,3209.9,3209.8,3.2078]
[1736865182237,3.56440442,3209.9,3209.7,3.2078]
[1736865182424,3.56440442,3210.3,3209.2,3.2078]
[1736865182628,1.611,3210.5,3209.8,40.8]
[1736865182827,3.54703565,3210.0,3209.8,44.0078]
[1736865183032,3.54703565,3210.4,3209.8,44.0078]
[1736865183224,3.54448082,3210.5,3210.3,6.95372823]
[1736865183529,4.04413565,3212.3,3210.3,6.64212823]
[1736865183732,4.04413565,3212.3,3211.8,3.2078]
[1736865183923,0.4971,3212.3,3212.2,40.8]
[1736865184333,4.04599887,3212.3,3211.8,3.2078]
[1736865184727,3.54889887,3212.3,3211.8,3.2078]
[1736865184925,3.54889887,3212.3,3211.9,40.8]
[1736865185127,0.4598,3213.0,3211.9,40.8]
[1736865185128,3.2078,3213.0,3212.2,3.2078]
[1736865185625,3.55755264,3212.9,3212.2,3.2078]
[1736865186133,3.86890264,3212.9,3211.8,3.2078]
[1736865186326,3.2078,3212.6,3211.8,3.2078]
[1736865186835,3.40769953,3212.5,3211.8,3.2078]
[1736865187135,3.40769953,3212.5,3212.2,3.2078]
[1736865187324,3.2078,3213.0,3212.2,3.2078]
[1736865187770,3.57389233,3212.7,3211.8,3.2078]
[1736865187937,0.31136,3212.8,3211.8,3.2078]
[1736865188130,3.2078,3213.0,3211.8,3.2078]
[1736865188323,3.57389233,3212.6,3212.2,3.2078]
[1736865188627,0.31138,3212.6,3212.2,3.2078]
[1736865188933,0.31143,3212.1,3211.3,3.2078]
[1736865189126,0.31145,3211.9,3210.7,3.2078]
[1736865189430,0.31145,3211.9,3210.1,0.4948]
[1736865189431,3.2078,3211.2,3210.3,3.2078]
[1736865189617,3.51932,3211.2,3210.3,3.2078]
[1736865189816,3.57637984,3211.1,3210.1,0.4948]
[1736865190012,3.2078,3210.7,3209.6,3.2078]
[1736865190511,3.28967892,3210.6,3209.6,3.2078]
[1736865191013,0.31163,3210.1,3209.2,0.4651]
[1736865191201,3.2078,3209.5,3208.4,3.7049]
[1736865191408,3.2078,3209.1,3208.0,3.2078]
[1736865191717,3.2078,3208.7,3207.5,3.2078]
[1736865191909,0.31175,3208.8,3207.6,40.8]
[1736865192213,3.2078,3208.3,3207.6,40.8]
[1736865192510,3.58862305,3208.2,3207.5,3.2078]
[1736865193013,3.2078,3208.9,3207.5,3.2078]
[1736865193014,3.2078,3208.4,3207.5,3.2078]
[1736865193213,3.2078,3208.4,3207.4,41.7634]
[1736865193214,3.51965,3207.8,3207.4,40.8]
[1736865193406,3.51965,3207.8,3206.8,3.2078]
[1736865193601,0.31187,3207.6,3206.8,3.2078]
[1736865193815,0.27487411,3207.7,3206.8,44.0078]
[1736865194010,3.36949175,3207.5,3206.4,3.2078]
[1736865194214,3.36949175,3207.7,3206.9,3.2078]
[1736865194408,3.36949175,3207.6,3206.5,3.2078]
[1736865194613,3.2078,3207.8,3206.9,44.0078]
[1736865195008,3.31130227,3207.7,3207.5,3.2078]
[1736865195208,0.4673,3208.7,3207.5,3.2078]
[1736865195614,3.31130227,3208.6,3207.9,3.2078]
[1736865196010,3.2078,3208.8,3208.4,3.2078]
[1736865196311,3.2078,3209.3,3208.4,3.2078]
[1736865196520,3.2078,3209.3,3208.8,3.2078]
[1736865196815,6.52877057,3209.3,3208.8,3.2078]
[1736865197617,3.32097057,3209.3,3208.8,3.2078]
[1736865197915,3.2078,3208.9,3207.9,3.2078]
[1736865198117,3.2078,3208.5,3207.5,3.2078]
[1736865198504,3.54601421,3208.4,3207.5,3.2078]
[1736865198714,0.31181,3208.2,3207.5,3.2078]
[1736865198921,3.85780421,3208.4,3207.5,3.2078]
[1736865199111,3.62533576,3208.1,3207.5,3.2078]
[1736865199313,0.31182,3208.1,3207.5,3.2078]
[1736865199613,6.52131576,3208.0,3206.7,3.2078]
[1736865199807,6.52131576,3208.0,3207.2,3.2078]
[1736865200716,6.52131576,3208.0,3206.1,0.4804]
[1736865200717,3.31351576,3208.0,3207.7,3.2078]
[1736865200920,3.2078,3209.0,3207.8,0.31184]
[1736865201108,3.2078,3209.0,3207.5,3.2078]
[1736865201422,6.56310216,3208.6,3207.9,3.2078]
[1736865201607,6.56310216,3208.6,3206.5,5.00994261]
[1736865201608,0.31178,3208.5,3208.0,40.8]
[1736865201807,3.91582465,3208.5,3207.2,3.2078]
[1736865202017,3.2078,3208.2,3207.2,3.2078]
[1736865202214,3.2078,3207.8,3207.2,44.0078]
[1736865202423,3.2078,3207.8,3206.2,3.6752]
[1736865202424,4.8808,3207.8,3206.2,3.6752]
[1736865202719,3.60404465,3207.7,3206.6,3.2078]
[1736865203109,3.60404465,3207.7,3207.0,3.2078]
[1736865203316,4.8808,3208.3,3207.6,3.2078]
[1736865203517,1.673,3208.3,3207.6,3.2078]
[1736865203717,3.56571209,3208.1,3207.6,3.2078]
[1736865204016,3.2078,3208.7,3207.7,40.8]
[1736865204211,3.2078,3209.1,3208.4,3.2078]
[1736865204409,3.2078,3209.1,3208.0,3.2078]
[1736865204410,3.35839576,3208.6,3208.0,3.2078]
[1736865204620,3.35839576,3208.7,3208.0,3.2078]
[1736865204919,3.36952576,3209.0,3208.2,3.2078]
[1736865205123,3.2078,3208.3,3207.7,40.8]
[1736865205316,3.2078,3208.3,3206.9,3.2078]
[1736865205625,3.36952576,3208.2,3207.3,3.2078]
[1736865206615,3.68133576,3208.2,3207.3,3.2078]
[1736865207014,3.36952576,3208.2,3207.3,3.2078]
[1736865207220,3.2078,3208.8,3208.1,3.2078]
[1736865207619,6.65405423,3208.8,3207.7,3.2078]
[1736865207827,3.2078,3208.8,3207.7,3.2078]
[1736865208220,0.31177,3208.6,3207.7,3.2078]
[1736865208426,3.45477712,3208.7,3207.7,3.2078]
[1736865208721,3.45668008,3208.5,3207.3,3.2078]
[1736865208928,3.59293528,3208.7,3207.7,3.2078]
[1736865209225,3.2078,3208.8,3207.7,3.2078]
[1736865209518,3.59293528,3208.7,3207.7,3.2078]
[1736865209726,3.2078,3209.5,3208.3,3.2078]
[1736865209918,3.2078,3209.5,3208.8,3.2078]
[1736865210223,3.50586454,3209.4,3208.6,3.2078]
[1736865210428,3.50586454,3209.4,3208.5,3.2078]
[1736865210723,3.50586454,3209.7,3208.5,3.2078]
[1736865210924,3.25493865,3209.4,3208.6,3.2078]
[1736865211123,1.98465,3209.8,3208.6,3.2078]
[1736865211124,3.25493865,3209.7,3208.6,3.2078]
[1736865211426,1.673,3209.8,3209.0,3.2078]
[1736865211718,3.46137171,3209.7,3209.0,44.0078]
[1736865212713,3.46137171,3209.7,3209.4,3.2078]
[1736865212924,0.4898,3210.1,3209.4,3.2078]
[1736865213123,0.4962,3210.5,3209.4,3.2078]
[1736865213326,3.59178069,3210.0,3209.4,3.2078]
[1736865213524,6.79958069,3210.0,3209.0,3.2078]
[1736865213822,0.4962,3210.5,3209.0,3.2078]
[1736865213823,3.2078,3209.6,3209.0,3.2078]
[1736865214015,5.12850421,3209.9,3209.0,3.2078]
[1736865214219,0.01622812,3209.5,3209.0,3.2078]
[1736865214422,3.51946,3209.7,3209.0,3.2078]
[1736865214922,3.2078,3209.3,3208.4,3.2078]
[1736865215127,0.31171,3209.2,3208.4,3.2078]
[1736865215427,0.37041847,3209.2,3208.4,3.2078]
[1736865215816,3.2078,3208.9,3208.0,3.2078]
[1736865216019,3.2078,3208.5,3207.6,3.2078]
[1736865216524,0.3118,3208.3,3207.1,3.2078]
[1736865216722,3.2078,3208.1,3207.1,3.2078]
[1736865216926,3.51148855,3208.2,3207.9,0.31183]
[1736865217224,3.51148855,3209.0,3208.1,0.31181]
[1736865217423,3.51148855,3209.0,3208.9,3.2078]
[1736865217628,3.2078,3209.9,3208.9,3.2078]
[1736865217932,3.53130668,3209.3,3208.9,3.2078]
[1736865218125,3.53130668,3209.3,3209.0,40.8]
[1736865218326,3.2078,3209.9,3209.0,40.8]
[1736865218721,3.84295668,3209.8,3208.5,3.2078]
[1736865218921,3.84295668,3209.8,3208.9,3.2078]
[1736865219120,3.53130668,3209.8,3208.5,3.2078]
[1736865219319,3.53130668,3209.8,3208.9,3.2078]
[1736865220626,3.53130668,3209.8,3209.4,3.2078]
[1736865220819,3.2078,3210.5,3209.4,3.51948]
[1736865221022,3.43559005,3209.8,3209.4,3.2078]
[1736865221223,3.43559005,3210.2,3208.9,3.2078]
[1736865221420,0.31161,3210.3,3208.9,3.2078]
[1736865221620,3.2078,3210.1,3209.3,3.2078]
[1736865221822,3.43559005,3210.1,3209.3,3.2078]
[1736865222028,3.60973694,3210.5,3209.3,3.2078]
[1736865222230,3.3292051,3210.4,3209.3,3.2078]
[1736865222527,3.60973694,3210.5,3209.3,3.2078]
[1736865222528,3.3292051,3210.1,3209.3,3.2078]
[1736865222719,3.3292051,3210.4,3209.7,3.2078]
[1736865222919,3.2078,3211.1,3210.1,3.2078]
[1736865223120,3.2078,3211.1,3210.6,3.2078]
[1736865223520,3.2078,3211.6,3210.6,3.2078]
[1736865223928,3.51716589,3211.3,3210.7,40.8]
[1736865224630,3.51716589,3211.5,3210.7,40.8]
[1736865224930,3.2078,3211.6,3210.7,40.8]
[1736865225323,3.49128046,3211.5,3210.7,40.8]
[1736865225527,7.1009274,3211.5,3210.7,40.8]
[1736865225726,3.51931,3211.2,3210.6,3.2078]
[1736865226026,3.2078,3211.2,3210.6,3.2078]
[1736865226239,3.35052488,3211.1,3210.6,3.2078]
[1736865226419,3.75115694,3211.5,3210.6,3.2078]
[1736865226420,0.453,3211.5,3210.6,3.2078]
[1736865226730,3.35052488,3211.2,3210.6,3.2078]
[1736865226927,3.35052488,3211.4,3210.6,3.2078]
[1736865227123,3.2078,3211.6,3210.6,3.2078]
[1736865227328,3.60782555,3211.4,3210.6,3.2078]
[1736865227729,3.51928,3211.6,3210.6,3.2078]
[1736865227927,3.2078,3211.6,3210.6,3.2078]
[1736865228133,3.46465785,3211.3,3210.6,3.2078]
[1736865228434,3.2078,3211.6,3210.6,3.2078]
[1736865228627,3.46465785,3211.2,3210.6,3.2078]
[1736865228930,3.27361072,3211.3,3210.6,3.2078]
[1736865229128,3.2078,3211.6,3210.6,3.2078]
[1736865229324,3.27361072,3211.2,3210.6,3.2078]
[1736865229529,6.48141072,3211.2,3210.6,3.2078]
[1736865229729,3.2078,3211.2,3210.6,3.2078]
[1736865230029,3.49632855,3211.1,3210.6,3.2078]
[1736865230227,3.2078,3211.2,3210.6,3.2078]
[1736865230434,3.49632855,3211.1,3210.6,3.2078]
[1736865231535,3.49632855,3211.1,3209.8,3.2078]
[1736865231727,3.2078,3210.8,3209.8,3.2078]
[1736865232131,6.71170779,3211.2,3210.4,3.2078]
[1736865232332,3.2078,3211.2,3210.5,40.8]
[1736865232737,3.50390779,3211.1,3210.5,40.8]
[1736865233335,4.1667,3212.0,3210.8,3.2078]
[1736865233831,3.53453706,3211.6,3211.2,3.2078]
[1736865234033,3.2078,3212.8,3211.2,3.2078]
[1736865234235,3.6806,3213.2,3212.4,3.2078]
[1736865234426,3.29808858,3212.8,3212.4,3.2078]
[1736865234738,3.2078,3212.8,3211.9,3.2078]
[1736865234935,3.39909976,3212.7,3212.5,6.50595694]
[1736865235233,0.4728,3213.2,3212.5,6.50595694]
[1736865235234,3.42574117,3212.8,3212.5,3.2078]
[1736865235634,3.42574117,3213.0,3212.5,3.2078]
[1736865235831,3.31705872,3213.3,3212.5,3.2078]
[1736865236034,0.4728,3213.7,3212.9,3.2078]
[1736865236240,3.31705872,3213.4,3212.9,3.2078]
[1736865236534,3.31705872,3213.4,3212.1,3.29815694]
[1736865236535,3.31705872,3213.5,3212.7,3.2078]
[1736865236733,3.31705872,3213.6,3212.7,3.2078]
[1736865236734,3.29815694,3213.6,3212.7,3.2078]
[1736865236936,6.65197236,3213.4,3212.7,3.2078]
[1736865237235,3.2078,3213.4,3212.7,3.2078]
[1736865237439,3.44417236,3213.3,3212.7,3.2078]
[1736865238032,3.44417236,3213.3,3213.1,3.2078]
[1736865238238,3.2078,3215.2,3213.1,3.2078]
[1736865238438,3.2078,3215.2,3214.5,3.2078]
[1736865238737,3.56605143,3214.8,3214.5,0.31119]
[1736865238929,6.97235694,3216.2,3214.7,3.2078]
[1736865239134,0.31108,3215.8,3215.1,3.2078]
[1736865239340,3.30659056,3215.3,3215.1,3.2078]
[1736865239539,0.31107,3215.8,3215.1,3.2078]
[1736865239841,3.4256983,3215.2,3215.1,3.2078]
[1736865240044,3.4256983,3215.7,3215.1,3.2078]
[1736865240338,3.4256983,3215.5,3215.1,3.2078]
[1736865240729,0.4664,3216.2,3215.1,3.2078]
[1736865240934,3.57551798,3215.4,3215.1,3.2078]
[1736865241129,6.78331798,3215.8,3215.1,3.2078]
[1736865241334,3.2078,3215.8,3215.1,3.2078]
[1736865241536,3.57551798,3215.7,3215.1,3.2078]
[1736865241732,3.57551798,3215.7,3215.2,40.8]
[1736865242041,3.18692474,3216.1,3215.9,0.31105]
[1736865242241,3.2078,3218.2,3216.9,0.31096]
[1736865242447,4.35265914,3218.3,3217.7,3.2078]
[1736865242638,3.35155914,3218.3,3218.1,3.2078]
[1736865242840,0.31076,3219.0,3218.1,3.2078]
[1736865243146,0.31076,3219.0,3217.8,40.8]
[1736865243147,1.26552,3219.4,3218.6,3.2078]
[1736865243339,3.42502395,3219.0,3218.6,3.2078]
[1736865243656,3.42502395,3219.3,3218.6,3.2078]
[1736865243949,0.9548,3219.4,3218.6,3.2078]
[1736865244139,6.67196856,3219.3,3218.6,3.2078]
[1736865244344,3.51855,3219.1,3218.2,3.2078]